bitfinex-derivatives/quotes_ETHF0:USTF0_20250430
["timestamp","ask_amount","ask_price","bid_price","bid_amount"]
[1746022693491,2.85727,1749.5,1748.4,3.2078]
[1746022693691,3.2078,1748.8,1748.3,3.2078]
[1746022693889,4.35141,1748.4,1748.3,5.031]
[1746022694495,9.35141,1748.4,1748.3,5.031]
[1746022694879,11.06688,1748.4,1748.0,5.031]
[1746022695090,4.35161,1748.1,1748.0,5.031]
[1746022695284,3.2078,1748.1,1748.0,5.031]
[1746022695483,4.35161,1748.1,1748.0,5.031]
[1746022695687,9.04061,1748.1,1748.0,5.031]
[1746022695889,7.8968,1748.1,1748.0,7.28593]
[1746022696091,9.04061,1748.1,1748.0,5.031]
[1746022696980,7.8968,1748.1,1748.0,7.28593]
[1746022697185,9.04061,1748.1,1748.0,5.031]
[1746022697583,3.2078,1748.1,1748.0,5.031]
[1746022697788,1.14381,1748.1,1748.0,5.031]
[1746022697988,4.35161,1748.1,1748.0,5.031]
[1746022698593,3.2078,1748.1,1748.0,5.031]
[1746022698792,3.2078,1748.1,1748.0,10.93867]
[1746022699098,7.8968,1748.3,1748.0,17.0216]
[1746022699300,9.04052,1748.3,1748.1,1.14381]
[1746022699496,4.35148,1748.3,1748.2,4.7638]
[1746022699789,1.14381,1748.1,1748.0,8.859]
[1746022699995,4.35161,1748.1,1748.0,8.859]
[1746022700194,1.144,1747.8,1747.7,5.033]
[1746022700389,3.2078,1747.8,1747.7,5.033]
[1746022700594,3.66629697,1747.8,1747.7,8.432]
[1746022701197,3.66629697,1747.8,1747.7,7.28793]
[1746022701392,8.02429697,1747.8,1747.7,8.432]
[1746022701594,0.45849697,1747.8,1747.7,13.0325]
[1746022701897,1.60249697,1747.8,1747.7,11.88843]
[1746022702093,1.144,1747.8,1747.7,11.88843]
[1746022702296,4.3518,1747.8,1747.7,5.033]
[1746022702897,3.66660393,1747.8,1747.7,5.033]
[1746022703094,6.06691,1748.4,1748.0,1.14381]
[1746022703299,8.73544,1748.2,1748.1,5.034]
[1746022703801,13.73544,1748.2,1748.1,5.034]
[1746022704193,2.85969,1748.0,1747.5,7.8083]
[1746022704390,1.14407,1747.7,1747.6,5.034]
[1746022704790,5.91207,1747.7,1747.6,5.034]
[1746022705298,4.35181,1747.8,1747.6,6.1781]
[1746022705602,4.35186,1747.8,1747.6,5.034]
[1746022705801,5.91207,1747.7,1747.6,5.034]
[1746022706307,5.91207,1747.7,1747.2,70.56]
[1746022706308,10.91207,1747.7,1747.2,70.56]
[1746022706506,4.35207,1747.4,1747.3,5.034]
[1746022707096,3.2078,1747.4,1747.3,8.43326]
[1746022707299,4.768,1747.5,1747.4,1.14427]
[1746022707498,4.768,1747.5,1747.4,5.91137]
[1746022707693,3.2078,1747.6,1747.5,1.1442]
[1746022707896,4.6423,1747.9,1747.7,1.14407]
[1746022707897,7.8476,1747.8,1747.7,1.14407]
[1746022708093,7.8476,1747.8,1747.7,6.17907]
[1746022708297,7.8476,1747.8,1747.7,8.434]
[1746022708899,8.9916,1747.8,1747.7,7.28993]
[1746022709592,3.2078,1747.8,1747.7,7.28993]
[1746022709797,4.35174,1747.9,1747.8,1.144]
[1746022710000,4.35174,1747.9,1747.8,5.916]
[1746022710204,4.35174,1747.9,1747.8,11.99893]
[1746022710403,3.2078,1747.9,1747.8,11.99893]
[1746022710599,4.35174,1747.9,1747.8,3.828]
[1746022710804,8.82224,1747.9,1747.8,3.828]
[1746022711114,8.82224,1747.9,1747.7,5.035]
[1746022711115,1.144,1747.8,1747.7,5.035]
[1746022711402,4.35175,1747.9,1747.8,1.144]
[1746022711599,3.2078,1747.9,1747.8,1.144]
[1746022711798,3.2078,1747.9,1747.8,3.39893]
[1746022711999,4.35174,1747.9,1747.8,2.25493]
[1746022712195,4.35174,1747.9,1747.8,6.08293]
[1746022712400,9.35174,1747.9,1747.8,3.828]
[1746022713201,1.14414,1747.6,1747.5,5.035]
[1746022713402,4.35194,1747.6,1747.5,8.43413]
[1746022713600,4.35194,1747.6,1747.5,7.28993]
[1746022713807,3.2078,1747.6,1747.5,8.43413]
[1746022714004,4.35194,1747.6,1747.5,7.28993]
[1746022714200,4.35194,1747.6,1747.5,11.11793]
[1746022714413,4.35194,1747.6,1747.5,8.863]
[1746022714909,8.76054,1747.6,1747.5,8.863]
[1746022715107,8.76054,1747.6,1747.5,5.035]
[1746022715496,10.47679,1747.6,1747.2,1.14434]
[1746022715701,4.35207,1747.4,1747.3,5.036]
[1746022716408,1.14433,1747.3,1747.2,5.036]
[1746022716611,5.55293,1747.3,1747.2,5.036]
[1746022716907,5.55293,1747.3,1746.8,7.9627]
[1746022716908,1.14459,1747.0,1746.8,6.13764]
[1746022717101,4.35231,1747.1,1746.8,11.96503]
[1746022717307,1.14453,1747.0,1746.9,4.7171]
[1746022717497,1.14459,1746.9,1746.8,11.07593]
[1746022717699,4.6303,1747.0,1746.9,1.14459]
[1746022718104,4.6303,1747.0,1746.8,8.821]
[1746022718105,1.14459,1746.9,1746.8,8.821]
[1746022718404,4.6303,1747.0,1746.8,7.24793]
[1746022718704,1.14459,1746.9,1746.8,8.39255]
[1746022718911,1.14459,1746.9,1746.8,7.24793]
[1746022719499,1.14459,1746.9,1746.8,4.993]
[1746022719700,4.35239,1746.9,1746.8,4.993]
[1746022719902,8.93103,1746.9,1746.6,4.993]
[1746022720103,4.35253,1746.7,1746.6,4.993]
[1746022720508,4.80658547,1746.7,1746.6,4.993]
[1746022720706,9.34548547,1746.7,1746.6,4.993]
[1746022721706,9.34548547,1746.7,1746.6,4.343]
[1746022721911,0.45405547,1746.7,1746.6,7.74272]
[1746022722113,0.45405547,1746.7,1746.6,10.95052]
[1746022722304,4.5389,1747.0,1746.9,1.14459]
[1746022722612,1.14466,1746.8,1746.7,10.2139]
[1746022722811,1.14465,1746.9,1746.7,11.32413]
[1746022723112,5.47509,1747.0,1746.7,11.32413]
[1746022723510,3.2078,1747.1,1746.7,14.18591]
[1746022723715,5.76194,1747.2,1746.8,2.86166]
[1746022723911,7.5383,1747.3,1747.1,1.14446]
[1746022724207,1.14446,1747.1,1747.0,4.994]
[1746022724412,4.35226,1747.1,1747.0,4.994]
[1746022724604,1.14446,1747.1,1747.0,6.13853]
[1746022724807,1.14446,1747.1,1747.0,10.63923]
[1746022725002,1.14445,1747.2,1747.0,12.89416]
[1746022725202,1.14445,1747.2,1747.1,1.14446]
[1746022725203,5.47495,1747.2,1747.1,1.14446]
[1746022725411,4.3305,1747.2,1747.1,1.14446]
[1746022725613,4.3305,1747.2,1747.1,3.39939]
[1746022725811,1.1444,1747.2,1747.1,3.39934]
[1746022726006,1.1444,1747.2,1747.1,3.39939]
[1746022726512,1.1444,1747.2,1747.1,2.25493]
[1746022726700,5.43,1747.2,1747.1,2.25493]
[1746022726904,2.86116,1747.1,1746.4,1.14488]
[1746022727105,1.14486,1746.5,1746.4,5.41951]
[1746022727508,5.43044,1746.6,1746.4,5.41951]
[1746022727705,3.2078,1746.7,1746.6,1.14479]
[1746022728102,4.35253,1746.7,1746.6,0.75051]
[1746022728307,3.2078,1746.7,1746.4,4.669]
[1746022728510,1.14486,1746.5,1746.4,5.74551]
[1746022728712,4.35266,1746.5,1746.4,5.74551]
[1746022729108,1.14476,1746.7,1746.4,10.42141]
[1746022729312,4.7204,1746.7,1746.5,1.14486]
[1746022729511,1.14479,1746.6,1746.5,5.42641]
[1746022729713,1.14486,1746.5,1746.4,4.995]
[1746022729910,5.86526,1746.5,1746.4,4.995]
[1746022730414,1.14486,1746.5,1746.4,4.995]
[1746022730714,4.7204,1746.5,1745.9,3.2078]
[1746022730911,3.2078,1746.4,1746.0,9.6709]
[1746022731114,4.35278,1746.4,1746.2,1.14504]
[1746022731313,4.35272,1746.4,1746.3,4.6759]
[1746022731708,4.35272,1746.4,1746.3,5.42641]
[1746022731910,1.14504,1746.3,1746.1,1.43666833]
[1746022732112,1.14505,1746.2,1746.0,0.75051]
[1746022732412,1.14532,1745.8,1745.7,0.29168729]
[1746022732614,3.2078,1745.8,1745.5,4.6675]
[1746022732821,4.7344,1745.7,1745.5,5.41801]
[1746022733013,4.7344,1745.7,1745.6,1.14545]
[1746022733518,5.87978,1745.7,1745.6,0.75051]
[1746022734404,4.7344,1745.7,1745.6,0.75051]
[1746022734604,4.35314,1745.8,1745.7,1.14538]
[1746022734805,1.14538,1745.7,1745.6,1.89594]
[1746022735009,7.9422,1745.8,1745.7,1.14538]
[1746022735211,9.53661496,1745.8,1745.7,1.14538]
[1746022735613,7.7292,1746.2,1745.7,11.89189]
[1746022735810,4.6132,1746.5,1746.1,4.35292]
[1746022736013,4.6132,1746.5,1746.2,9.2968]
[1746022736213,5.75811,1746.5,1746.4,1.14492]
[1746022736518,1.14477,1746.7,1746.6,1.14479]
[1746022736705,4.6132,1746.8,1746.7,1.14473]
[1746022736911,1.14466,1746.8,1746.7,4.3008]
[1746022737220,1.14466,1746.8,1746.7,6.19598]
[1746022737614,7.821,1747.0,1746.7,6.19598]
[1746022737615,7.821,1747.0,1746.7,5.05131]
[1746022737822,3.2078,1747.6,1747.2,1.1444]
[1746022738012,4.35195,1747.6,1747.4,1.14421]
[1746022738212,3.2078,1747.6,1747.3,9.34809]
[1746022738517,4.326,1747.5,1747.4,5.60137]
[1746022738820,3.7056,1747.6,1747.5,1.1442]
[1746022739011,4.84974,1747.6,1747.5,4.4571]
[1746022739214,3.7056,1747.6,1747.5,5.6013]
[1746022739415,4.84974,1747.6,1747.5,5.6013]
[1746022739610,4.84974,1747.6,1747.5,4.4571]
[1746022739818,1.1442,1747.5,1747.4,3.828]
[1746022740014,5.4702,1747.5,1747.4,3.828]
[1746022740219,14.72105476,1747.5,1747.4,1.90400715]
[1746022740423,1.14445,1747.2,1746.9,10.59769]
[1746022740613,5.47049,1747.1,1746.9,9.4521]
[1746022740814,4.35233,1747.0,1746.9,4.995]
[1746022741016,8.67833,1747.0,1746.9,4.995]
[1746022741517,3.2078,1747.0,1746.9,4.995]
[1746022741711,1.1444,1747.2,1747.0,1.14449]
[1746022741913,3.2078,1747.1,1747.0,5.54579]
[1746022742514,5.70537,1747.3,1747.0,4.4013]
[1746022742712,3.2078,1747.2,1747.0,4.4013]
[1746022742912,3.2078,1747.2,1747.1,1.14446]
[1746022743314,3.7056,1747.6,1747.3,1.14427]
[1746022743513,1.14423,1747.5,1747.4,1.14427]
[1746022743824,4.561,1747.5,1747.4,5.54557]
[1746022744026,3.7056,1747.6,1747.5,1.1442]
[1746022744227,3.7056,1747.6,1747.5,5.8427]
[1746022744419,4.84974,1747.6,1747.5,4.6985]
[1746022744729,4.84974,1747.6,1747.4,3.828]
[1746022744730,1.1442,1747.5,1747.4,3.828]
[1746022744928,4.498,1747.5,1747.4,4.97227]
[1746022745119,4.498,1747.5,1747.4,5.84277]
[1746022745320,3.7056,1747.6,1747.5,1.1442]
[1746022745523,0.4978,1747.6,1747.5,5.8427]
[1746022745731,0.4978,1747.6,1747.5,4.6985]
[1746022745926,1.14424,1747.5,1747.3,4.995]
[1746022746121,1.14427,1747.4,1747.3,4.995]
[1746022746326,13.31401,1747.5,1747.3,6.13931]
[1746022746623,7.7058,1747.5,1747.4,1.14427]
[1746022746930,3.2078,1747.5,1747.4,5.84277]
[1746022747129,0.4978,1747.6,1747.5,1.1488666]
[1746022747424,0.4978,1747.6,1747.5,5.6461666]
[1746022747631,0.4978,1747.6,1747.5,15.0134666]
[1746022748126,0.4978,1747.6,1747.5,18.8414666]
[1746022748326,0.4978,1747.6,1747.5,22.0492666]
[1746022748527,5.50821,1748.0,1747.9,1.14394]
[1746022748724,5.50821,1748.0,1747.9,4.957]
[1746022748929,5.95350117,1748.0,1747.9,4.957]
[1746022749128,0.44529117,1748.0,1747.9,6.10094]
[1746022749322,0.44529117,1748.0,1747.9,14.30874]
[1746022749527,6.65526367,1748.4,1748.3,1.14368]
[1746022749730,5.51165367,1748.4,1748.3,6.09968]
[1746022750024,5.51165367,1748.4,1748.3,4.956]
[1746022750230,5.51165367,1748.4,1748.3,9.92768]
[1746022750732,1.14357,1748.5,1748.3,8.784]
[1746022750935,1.14357,1748.5,1748.4,4.4486]
[1746022751134,5.68303,1748.6,1748.5,1.14355]
[1746022751525,1.14339,1748.8,1748.6,1.14348]
[1746022751721,5.68285,1748.8,1748.7,4.956]
[1746022751921,5.51165367,1748.9,1748.7,4.956]
[1746022752225,5.51165367,1748.9,1748.8,5.59195]
[1746022753128,10.05115367,1748.9,1748.8,5.59195]
[1746022753631,11.19444367,1748.9,1748.8,4.4486]
[1746022753829,11.19444367,1748.9,1748.8,4.955]
[1746022753830,8.71945367,1748.9,1748.8,4.955]
[1746022754129,5.51165367,1748.9,1748.8,6.09835]
[1746022754336,8.98679,1748.9,1748.8,4.955]
[1746022754522,4.6357,1748.9,1748.8,6.09835]
[1746022755636,3.2078,1749.1,1748.8,6.09835]
[1746022755637,3.2078,1749.1,1749.0,1.14322]
[1746022755827,7.8435,1749.1,1749.0,1.14322]
[1746022756138,8.98665,1749.1,1748.9,4.6587]
[1746022756332,4.6357,1749.1,1749.0,1.14322]
[1746022756730,1.14307,1749.3,1749.2,1.14309]
[1746022757037,4.356,1749.4,1749.3,1.14302]
[1746022758028,4.356,1749.4,1749.3,5.43262]
[1746022759131,4.356,1749.4,1749.3,1.14302]
[1746022759326,1.14302,1749.3,1749.2,6.09704]
[1746022759527,3.2078,1749.3,1749.2,6.09704]
[1746022760134,4.5151,1749.3,1749.2,6.09704]
[1746022761136,4.5151,1749.3,1749.2,10.52244]
[1746022761839,4.5151,1749.3,1749.2,6.09704]
[1746022762830,7.8956,1749.5,1749.4,1.14296]
[1746022763032,12.3143,1749.5,1749.4,1.14296]
[1746022764338,13.45719,1749.5,1749.4,1.14296]
[1746022764528,12.3143,1749.5,1749.4,1.14296]
[1746022765134,13.45719,1749.5,1749.4,1.14296]
[1746022765341,1.143,1749.4,1749.3,1.14297]
[1746022765534,5.5119,1749.4,1749.3,1.14297]
[1746022766643,1.14302,1749.3,1749.2,4.954]
[1746022766837,1.14302,1749.3,1749.2,6.09709]
[1746022766838,4.3689,1749.3,1749.2,6.09709]
[1746022767042,4.6878,1749.5,1749.4,1.14296]
[1746022767236,4.3689,1749.5,1749.4,1.14296]
[1746022767637,4.5361,1749.8,1749.7,1.14276]
[1746022767936,4.5315,1750.0,1749.9,1.14263]
[1746022768141,3.2078,1750.1,1750.0,1.14257]
[1746022768342,7.5767,1750.1,1750.0,1.14257]
[1746022768734,7.5767,1750.1,1749.8,7.39455]
[1746022768935,7.5767,1750.1,1750.0,1.14257]
[1746022769133,8.7192,1750.1,1750.0,1.14257]
[1746022769339,7.5767,1750.1,1750.0,1.14257]
[1746022769834,7.5767,1750.1,1750.0,1.47630084]
[1746022770033,8.7192,1750.1,1749.9,4.4683]
[1746022770231,1.14269,1749.9,1749.7,3.53956212]
[1746022770435,1.14259,1750.0,1749.9,1.1426]
[1746022770631,5.65599,1750.0,1749.9,1.1426]
[1746022771141,4.5134,1750.0,1749.9,1.1426]
[1746022771941,4.5134,1750.0,1749.9,5.885]
[1746022772241,5.65603,1750.0,1749.9,1.14263]
[1746022773132,1.14263,1749.9,1749.8,6.09263]
[1746022773337,4.4064,1749.9,1749.8,6.09263]
[1746022773532,4.35008,1750.5,1750.4,1.14225]
[1746022773732,1.14224,1750.5,1750.4,4.95]
[1746022773939,4.35004,1750.5,1750.4,4.95]
[1746022774438,9.35004,1750.5,1750.4,4.95]
[1746022774840,14.04834,1750.5,1750.4,6.09231]
[1746022775039,14.04834,1750.5,1750.4,4.95]
[1746022775239,7.9061,1750.5,1750.4,6.09231]
[1746022775440,5.84054,1750.5,1750.4,6.09231]
[1746022775646,9.04834,1750.5,1750.4,4.95]
[1746022776145,9.04834,1750.5,1750.4,6.09231]
[1746022776948,9.04834,1750.5,1750.4,4.95]
[1746022778250,9.04834,1750.5,1750.4,6.09231]
[1746022779150,4.6983,1750.5,1750.4,6.09231]
[1746022779342,4.34994,1750.7,1750.6,1.14217]
[1746022779545,8.95714,1750.7,1750.6,1.14217]
[1746022779744,1.14217,1750.6,1750.5,5.44598]
[1746022779943,5.74937,1750.6,1750.5,1.14218]
[1746022780549,5.74942,1750.6,1750.5,1.14224]
[1746022780953,4.6072,1750.6,1750.5,1.14224]
[1746022781156,4.6072,1750.6,1750.5,5.83064]
[1746022781748,3.2078,1750.7,1750.6,1.14217]
[1746022781952,14.42889,1750.8,1750.6,1.14217]
[1746022782251,3.2078,1750.9,1750.8,1.14204]
[1746022782444,4.34978,1750.9,1750.8,4.912]
[1746022782647,1.14169,1751.4,1750.9,2.85496]
[1746022782852,1.14169,1751.4,1751.3,1.14172]
[1746022782853,1.14168,1751.4,1751.3,1.14172]
[1746022783048,1.14168,1751.4,1751.3,6.05372]
[1746022783350,1.14163,1751.5,1751.4,1.14163]
[1746022783539,1.14172,1751.3,1751.2,5.83016]
[1746022783737,5.50361,1751.4,1751.3,1.14172]
[1746022783939,1.14178,1751.2,1751.1,44.0078]
[1746022784148,1.14178,1751.2,1751.1,48.9198]
[1746022784853,1.14178,1751.2,1751.1,8.1198]
[1746022785348,1.14178,1751.2,1751.1,8.1188]
[1746022785552,1.14178,1751.2,1751.1,9.26065]
[1746022786356,1.14178,1751.2,1751.1,8.1188]
[1746022786543,1.14178,1751.2,1751.1,9.26065]
[1746022786854,7.21605,1751.4,1751.2,1.14176]
[1746022786855,1.14176,1751.3,1751.2,1.14176]
[1746022787055,10.46465,1751.7,1751.3,1.14169]
[1746022787257,1.14162,1751.5,1751.2,4.5115]
[1746022787448,1.14162,1751.5,1751.3,1.14167]
[1746022787648,1.14162,1751.5,1751.4,5.65315]
[1746022788050,1.14172,1751.4,1751.3,1.14169]
[1746022788342,1.1417,1751.4,1751.3,1.14169]
[1746022788546,4.6117,1751.6,1751.5,1.14159]
[1746022788756,1.14152,1751.6,1751.5,9.25932]
[1746022789150,10.1564,1751.7,1751.6,1.14152]
[1746022789358,1.14152,1751.6,1751.5,8.1178]
[1746022789548,5.75322,1751.6,1751.5,8.1178]
[1746022791349,1.14152,1751.6,1751.5,9.25939]
[1746022791649,1.14152,1751.6,1751.5,8.1178]
[1746022791848,1.14152,1751.6,1751.5,9.25939]
[1746022793159,5.68982,1751.6,1751.5,8.1178]
[1746022793349,5.68982,1751.6,1751.5,9.25939]
[1746022793657,5.41581,1751.7,1751.6,1.14152]
[1746022793953,9.96411,1751.7,1751.6,5.45182]
[1746022794751,1.14152,1751.6,1751.5,13.56969]
[1746022794949,5.68982,1751.6,1751.5,13.56969]
[1746022795349,1.1415,1751.7,1751.6,1.14146]
[1746022795748,5.6898,1751.7,1751.6,1.14146]
[1746022795948,1.14152,1751.6,1751.5,14.94254]
[1746022796852,5.65641,1751.7,1751.6,1.14152]
[1746022797756,1.14152,1751.7,1751.6,1.14148]
[1746022799954,5.65634,1751.8,1751.7,1.14146]
[1746022800359,7.36854,1751.8,1751.5,12.0988]
[1746022800654,1.14174,1751.4,1751.3,6.04969]
[1746022801050,5.57304,1751.4,1751.3,4.908]
[1746022801251,5.57304,1751.4,1751.3,6.04972]
[1746022801847,5.57304,1751.4,1751.3,4.908]
[1746022802455,5.57304,1751.4,1751.3,6.04972]
[1746022802854,5.57304,1751.4,1751.3,4.908]
[1746022803550,5.57304,1751.4,1751.3,6.04972]
[1746022804056,1.14162,1751.5,1751.4,1.14161]
[1746022804355,5.48335,1751.6,1751.5,1.14159]
[1746022804557,1.14159,1751.5,1751.4,10.52239]
[1746022804951,1.14159,1751.5,1751.4,4.908]
[1746022805152,6.14159,1751.5,1751.4,4.908]
[1746022805355,1.14172,1751.3,1751.2,4.34958]
[1746022805555,1.14172,1751.3,1751.2,1.14178]
[1746022805956,10.18482,1751.5,1751.1,4.3244]
[1746022805957,7.33071,1751.5,1751.1,4.3244]
[1746022806155,10.18484,1751.5,1751.1,4.3244]
[1746022806358,1.14177,1751.3,1751.2,1.14177]
[1746022806555,1.14178,1751.2,1751.1,5.46618]
[1746022806951,5.61837,1751.3,1751.2,1.14178]
[1746022807362,1.14178,1751.2,1751.1,5.46619]
[1746022807662,1.14178,1751.2,1751.1,4.3244]
[1746022807858,1.14185,1751.1,1751.0,4.908]
[1746022808358,2.85489,1751.0,1750.6,0.32697634]
[1746022808562,2.85489,1751.0,1750.4,3.2078]
[1746022808563,15.18246,1750.9,1750.4,3.2078]
[1746022808761,12.3275,1750.9,1750.5,4.2784]
[1746022809059,1.14217,1750.7,1750.5,9.74711]
[1746022809254,15.18248,1750.9,1750.5,9.74711]
[1746022809454,4.34987,1750.8,1750.5,8.6049]
[1746022809663,5.58677,1750.8,1750.6,1.14211]
[1746022809860,1.14211,1750.7,1750.6,1.14211]
[1746022810061,5.58674,1750.8,1750.7,1.14211]
[1746022810559,1.14204,1750.8,1750.7,6.01511]
[1746022810763,1.14204,1750.8,1750.7,4.873]
[1746022811657,5.51474,1750.8,1750.7,4.873]
[1746022812059,5.51474,1750.8,1750.1,14.59852]
[1746022812060,1.14237,1750.3,1750.2,3.2078]
[1746022812262,1.09079176,1750.3,1750.2,8.0818]
[1746022812864,1.14243,1750.3,1749.9,4.874]
[1746022813061,1.14243,1750.3,1750.1,4.35025]
[1746022813255,1.14244,1750.2,1750.1,4.35025]
[1746022813450,1.14239,1750.3,1750.2,1.14242]
[1746022813963,1.14244,1750.2,1750.1,4.35028]
[1746022814161,7.22834,1750.5,1750.1,4.35028]
[1746022814162,1.14242,1750.3,1750.2,1.14244]
[1746022814362,4.3727,1750.5,1750.1,3.2078]
[1746022814660,4.3727,1750.5,1750.2,1.1424]
[1746022814862,1.14238,1750.3,1750.2,1.1424]
[1746022815062,1.14235,1750.4,1750.3,1.14236]
[1746022815461,1.14238,1750.3,1750.2,1.14238]
[1746022815665,4.646,1750.3,1750.2,1.14244]
[1746022816161,5.78837,1750.3,1750.2,1.14244]
[1746022816468,1.14244,1750.2,1750.1,4.35024]
[1746022816864,0.64244,1750.2,1750.1,3.2078]
[1746022817361,5.42174,1750.2,1750.1,3.2078]
[1746022817564,1.14257,1750.0,1749.9,4.874]
[1746022818867,5.55157,1750.0,1749.9,4.874]
[1746022819467,4.409,1750.0,1749.9,6.01663]
[1746022819866,5.55157,1750.0,1749.9,6.01663]
[1746022820469,1.14256,1750.1,1750.0,1.14257]
[1746022821068,10.48007,1750.2,1750.1,1.1425]
[1746022821271,1.14252,1750.1,1750.0,1.14251]
[1746022821565,5.70082,1750.1,1750.0,1.14251]
[1746022821970,4.5583,1750.1,1750.0,1.14251]
[1746022822370,5.70084,1750.1,1750.0,1.14257]
[1746022823267,4.5583,1750.1,1750.0,1.14257]
[1746022823466,4.7793,1750.2,1750.1,1.1425]
[1746022823769,1.14244,1750.2,1750.1,1.1425]
[1746022824371,1.14228,1750.5,1750.4,1.14223]
[1746022824571,1.14228,1750.5,1750.4,6.01723]
[1746022824869,1.14228,1750.5,1750.4,4.875]
[1746022825557,1.14224,1750.5,1750.4,6.01728]
[1746022826267,5.46867,1750.6,1750.5,1.14224]
[1746022826868,5.46867,1750.6,1750.5,5.66804]
[1746022827068,5.46867,1750.6,1750.5,8.87584]
[1746022827565,4.359,1750.7,1750.6,1.14217]
[1746022827758,6.65352367,1751.1,1750.7,2.85527]
[1746022827963,11.32321367,1751.1,1751.0,1.14191]
[1746022828461,11.32325367,1751.1,1751.0,1.14191]
[1746022828757,1.14193,1751.0,1750.9,1.14195]
[1746022828958,5.8116,1751.1,1751.0,1.14191]
[1746022829463,5.60742,1751.3,1751.2,1.14178]
[1746022830368,4.4657,1751.3,1751.2,1.14178]
[1746022830869,9.0443,1751.3,1751.2,1.14178]
[1746022831571,10.18602,1751.3,1751.2,1.14178]
[1746022833274,9.0443,1751.3,1751.2,1.14178]
[1746022834376,10.18602,1751.3,1751.2,1.14178]
[1746022834774,9.0443,1751.3,1751.2,1.14178]
[1746022835164,10.18602,1751.3,1751.2,1.14178]
[1746022835476,9.0443,1751.3,1751.2,1.14178]
[1746022835678,10.18602,1751.3,1751.2,1.14178]
[1746022835872,4.5786,1751.3,1751.2,1.14178]
[1746022836078,9.4772,1751.5,1751.4,1.14165]
[1746022836676,1.14165,1751.4,1751.3,5.66297]
[1746022836875,5.91985,1751.4,1751.3,5.66297]
[1746022839577,5.91985,1751.4,1751.3,5.66302]
[1746022839771,5.91985,1751.4,1751.3,4.5213]
[1746022839971,5.91985,1751.4,1751.3,5.66302]
[1746022840466,4.7782,1751.4,1751.3,5.66302]
[1746022840672,4.678,1751.7,1751.6,1.14152]
[1746022840972,9.0503,1751.7,1751.6,1.14152]
[1746022841173,9.0503,1751.7,1751.6,9.18432]
[1746022841875,1.14128,1752.0,1751.9,1.14127]
[1746022842073,4.5713,1752.0,1751.9,1.14127]
[1746022842578,5.51165367,1752.1,1752.0,1.14126]
[1746022842771,5.51165367,1752.1,1752.0,10.34966]
[1746022843378,6.65285367,1752.1,1752.0,13.55746]
[1746022843576,5.51165367,1752.1,1752.0,10.34966]
[1746022843981,6.65285367,1752.1,1752.0,13.55746]
[1746022844279,5.51165367,1752.1,1752.0,10.34966]
[1746022844479,11.04775367,1752.1,1752.0,10.34966]
[1746022845080,11.04775367,1752.1,1752.0,4.834]
[1746022845275,5.5361,1752.1,1752.0,4.834]
[1746022846278,8.7439,1752.1,1752.0,4.834]
[1746022846874,9.0166,1752.5,1752.0,13.0418]
[1746022847075,9.0166,1752.5,1752.4,4.3488]
[1746022847281,4.6043,1752.5,1752.4,4.3488]
[1746022848478,5.74524,1752.5,1752.4,3.2078]
[1746022849479,1.1411,1752.3,1752.2,3.2078]
[1746022849888,5.86475,1752.4,1752.2,1.14111]
[1746022850178,4.7237,1752.4,1752.2,3.2078]
[1746022850382,1.14113,1752.2,1752.1,3.2078]
[1746022851182,3.2078,1753.0,1752.1,3.2078]
[1746022851378,11.89252,1752.9,1752.3,3.2078]
[1746022851583,6.05966,1752.8,1752.3,3.2078]
[1746022851784,6.05966,1752.8,1752.3,4.34885]
[1746022851987,1.14098,1752.5,1752.3,4.34885]
[1746022852178,4.4712,1752.4,1752.3,4.34885]
[1746022852380,5.6122,1752.4,1752.3,3.2078]
[1746022852575,9.2355,1752.4,1752.3,4.34887]
[1746022852780,4.7643,1752.4,1752.3,4.34887]
[1746022853985,5.9053,1752.4,1752.3,3.2078]
[1746022854281,7.61684,1752.4,1752.1,8.0408]
[1746022854491,1.14113,1752.2,1752.1,3.2078]
[1746022854784,8.9493,1752.3,1752.2,1.14113]
[1746022855088,1.14113,1752.2,1752.1,3.2078]
[1746022855289,5.72743,1752.2,1752.1,3.2078]
[1746022857488,4.5863,1752.2,1752.1,4.349]
[1746022857689,5.50409,1752.3,1752.1,4.349]
[1746022857987,9.92959,1752.3,1752.2,4.7544]
[1746022858189,4.4255,1752.3,1752.2,5.89553]
[1746022858388,4.7643,1752.4,1752.3,1.14107]
[1746022858578,5.9053,1752.4,1752.3,3.2078]
[1746022858985,4.7643,1752.4,1752.3,4.34887]
[1746022859188,5.9053,1752.4,1752.3,3.2078]
[1746022859389,10.3308,1752.4,1752.3,4.34887]
[1746022859594,9.1898,1752.4,1752.3,4.34887]
[1746022859885,4.7643,1752.4,1752.3,4.34887]
[1746022860086,8.756,1752.6,1752.5,1.14094]
[1746022860282,1.14084,1752.7,1752.5,1.14094]
[1746022860283,1.14084,1752.7,1752.5,4.34874]
[1746022860488,8.7723,1752.8,1752.5,3.2078]
[1746022860786,4.4277,1752.8,1752.7,1.14081]
[1746022860993,4.4277,1752.8,1752.7,4.34861]
[1746022861389,4.3446,1753.1,1753.0,1.14061]
[1746022861690,10.21495367,1753.3,1752.9,6.05942]
[1746022861882,5.51165367,1753.3,1753.2,1.14048]